[Event "November 21 Late 2023"]
[Site "https://www.chess.com"]
[Date "2023.11.21"]
[Round "3"]
[White "Mirza, Diana"]
[Black "Bernat, David"]
[Result "0-1"]
[Board "167"]
[TimeControl "180+1"]
[WhiteFideId "2503999"]
[BlackFideId "2099225"]
[WhiteElo "1813"]
[BlackElo "1894"]
[WhiteTeam "IRL"]
[BlackTeam "USA"]
[WhiteClock "0:00:11"]
[BlackClock "0:00:15"]

1. e4 {[%clk 0:03:00]}  c5 {[%clk 0:03:00]} 2. c4 {[%clk 0:03:00]}  Nc6 {[%clk 0:02:59]} 3. Nc3 {[%clk 0:03:01]}  g6 {[%clk 0:02:59]} 4. g3 {[%clk 0:03:02]}  Bg7 {[%clk 0:03:00]} 5. Bg2 {[%clk 0:03:03]}  d6 {[%clk 0:03:00]} 6. Nge2 {[%clk 0:03:04]}  e5 {[%clk 0:03:01]} 7. O-O {[%clk 0:03:05]}  Nge7 {[%clk 0:03:02]} 8. d3 {[%clk 0:03:05]}  O-O {[%clk 0:03:02]} 9. Be3 {[%clk 0:03:06]}  h6 {[%clk 0:02:59]} 10. Qd2 {[%clk 0:03:04]}  Kh7 {[%clk 0:02:58]} 11. f4 {[%clk 0:03:04]}  Nd4 {[%clk 0:02:58]} 12. Nd5 {[%clk 0:02:43]}  Nxd5 {[%clk 0:02:56]} 13. exd5 {[%clk 0:02:37]}  Bg4 {[%clk 0:02:46]} 14. Bxd4 {[%clk 0:02:19]}  exd4 {[%clk 0:02:32]} 15. h3 {[%clk 0:02:12]}  Bxe2 {[%clk 0:02:31]} 16. Qxe2 {[%clk 0:02:12]}  Re8 {[%clk 0:02:31]} 17. Qd2 {[%clk 0:02:12]}  Re3 {[%clk 0:02:29]} 18. Rf3 {[%clk 0:02:11]}  Qe7 {[%clk 0:02:28]} 19. Rxe3 {[%clk 0:02:11]}  dxe3 {[%clk 0:02:25]} 20. Qe2 {[%clk 0:02:10]}  Bd4 {[%clk 0:02:21]} 21. g4 {[%clk 0:02:07]}  Qf6 {[%clk 0:02:18]} 22. Rf1 {[%clk 0:02:02]}  Bxb2 {[%clk 0:02:17]} 23. Kh1 {[%clk 0:01:56]}  Bd4 {[%clk 0:02:15]} 24. Be4 {[%clk 0:01:50]}  Kg7 {[%clk 0:01:59]} 25. Rb1 {[%clk 0:01:49]}  b6 {[%clk 0:01:57]} 26. a4 {[%clk 0:01:44]}  Qxf4 {[%clk 0:01:54]} 27. Rf1 {[%clk 0:01:36]}  Qg5 {[%clk 0:01:34]} 28. a5 {[%clk 0:01:10]}  Qh4 {[%clk 0:01:10]} 29. Kg2 {[%clk 0:01:06]}  bxa5 {[%clk 0:00:55]} 30. Qf3 {[%clk 0:00:39]}  f6 {[%clk 0:00:34]} 31. Bxg6 {[%clk 0:00:28]}  Kxg6 {[%clk 0:00:17]} 32. Qf5+ {[%clk 0:00:28]}  Kg7 {[%clk 0:00:18]} 33. Qd7+ {[%clk 0:00:27]}  Kh8 {[%clk 0:00:18]} 34. Qxd6 {[%clk 0:00:21]}  e2 {[%clk 0:00:16]} 35. Qc6 {[%clk 0:00:11]}  exf1=Q+ {[%clk 0:00:15]} 36. Kxf1 {[%clk 0:00:11]}  Qf2# {[%clk 0:00:15]} 0-1

[Event "November 21 Late 2023"]
[Site "https://www.chess.com"]
[Date "2023.11.21"]
[Round "3"]
[White "Sailer, Mike"]
[Black "Vargas, Mauricio"]
[Result "1-0"]
[Board "170"]
[TimeControl "180+1"]
[WhiteFideId "2012901"]
[BlackFideId "4404572"]
[WhiteElo "2109"]
[BlackElo "1988"]
[WhiteTeam "USA"]
[BlackTeam "COL"]
[WhiteClock "0:00:10"]
[BlackClock "0:00:00"]

1. g3 {[%clk 0:02:59]}  e5 {[%clk 0:02:58]} 2. Bg2 {[%clk 0:02:59]}  Nc6 {[%clk 0:02:58]} 3. c4 {[%clk 0:02:59]}  f5 {[%clk 0:02:58]} 4. Nc3 {[%clk 0:02:59]}  Nf6 {[%clk 0:02:58]} 5. a3 {[%clk 0:02:56]}  g5 {[%clk 0:02:53]} 6. b4 {[%clk 0:02:49]}  Nd4 {[%clk 0:02:51]} 7. e3 {[%clk 0:02:45]}  Ne6 {[%clk 0:02:50]} 8. d4 {[%clk 0:02:30]}  e4 {[%clk 0:02:49]} 9. d5 {[%clk 0:02:28]}  Ng7 {[%clk 0:02:42]} 10. Bb2 {[%clk 0:02:27]}  d6 {[%clk 0:02:41]} 11. Nce2 {[%clk 0:02:00]}  Bd7 {[%clk 0:02:39]} 12. Nd4 {[%clk 0:01:56]}  Be7 {[%clk 0:02:33]} 13. Nge2 {[%clk 0:01:53]}  O-O {[%clk 0:02:31]} 14. O-O {[%clk 0:01:43]}  Qe8 {[%clk 0:02:30]} 15. Rc1 {[%clk 0:01:22]}  Ba4 {[%clk 0:02:22]} 16. Qd2 {[%clk 0:01:12]}  Nd7 {[%clk 0:02:21]} 17. Nc3 {[%clk 0:01:07]}  Ne5 {[%clk 0:02:14]} 18. Nxa4 {[%clk 0:00:45]}  Qxa4 {[%clk 0:02:12]} 19. c5 {[%clk 0:00:39]}  Qe8 {[%clk 0:02:01]} 20. cxd6 {[%clk 0:00:34]}  Bxd6 {[%clk 0:01:56]} 21. Ba1 {[%clk 0:00:32]}  g4 {[%clk 0:01:51]} 22. Rc3 {[%clk 0:00:30]}  Qh5 {[%clk 0:01:43]} 23. Rfc1 {[%clk 0:00:30]}  Nf3+ {[%clk 0:01:41]} 24. Nxf3 {[%clk 0:00:28]}  gxf3 {[%clk 0:01:34]} 25. Bf1 {[%clk 0:00:27]}  Rf6 {[%clk 0:01:23]} 26. Rxc7 {[%clk 0:00:25]}  Rh6 {[%clk 0:00:58]} 27. Rxg7+ {[%clk 0:00:24]}  Kf8 {[%clk 0:00:56]} 28. h3 {[%clk 0:00:18]}  Re8 {[%clk 0:00:28]} 29. Rxb7 {[%clk 0:00:18]}  Rg6 {[%clk 0:00:13]} 30. Kh2 {[%clk 0:00:15]}  f4 {[%clk 0:00:10]} 31. exf4 {[%clk 0:00:15]}  Qh6 {[%clk 0:00:00]} 32. Qc3 {[%clk 0:00:10]} 1-0

[Event "November 21 Late 2023"]
[Site "https://www.chess.com"]
[Date "2023.11.21"]
[Round "4"]
[White "Esipenko, Andrey"]
[Black "Raja Rithvik R"]
[Result "1-0"]
[Board "3"]
[TimeControl "180+1"]
[WhiteFideId "24175439"]
[BlackFideId "35007394"]
[WhiteElo "2615"]
[BlackElo "2395"]
[WhiteTeam "FID"]
[BlackTeam "IND"]
[WhiteClock "0:01:40"]
[BlackClock "0:00:25"]

1. d4 {[%clk 0:02:51]}  Nf6 {[%clk 0:02:58]} 2. c4 {[%clk 0:02:49]}  e6 {[%clk 0:02:59]} 3. g3 {[%clk 0:02:48]}  d5 {[%clk 0:02:56]} 4. Bg2 {[%clk 0:02:48]}  dxc4 {[%clk 0:02:56]} 5. Nf3 {[%clk 0:02:48]}  Bb4+ {[%clk 0:02:57]} 6. Bd2 {[%clk 0:02:46]}  c5 {[%clk 0:02:57]} 7. O-O {[%clk 0:02:41]}  O-O {[%clk 0:02:55]} 8. dxc5 {[%clk 0:02:36]}  Bxc5 {[%clk 0:02:55]} 9. Qc2 {[%clk 0:02:36]}  Nbd7 {[%clk 0:02:55]} 10. Na3 {[%clk 0:02:31]}  Bxa3 {[%clk 0:01:48]} 11. bxa3 {[%clk 0:02:31]}  Nb6 {[%clk 0:01:49]} 12. a4 {[%clk 0:02:30]}  Bd7 {[%clk 0:01:43]} 13. a5 {[%clk 0:02:30]}  Nbd5 {[%clk 0:01:37]} 14. Qxc4 {[%clk 0:02:29]}  Rc8 {[%clk 0:01:38]} 15. Qb3 {[%clk 0:02:29]}  Bc6 {[%clk 0:01:34]} 16. Rfc1 {[%clk 0:02:25]}  Ne7 {[%clk 0:01:26]} 17. Bb4 {[%clk 0:02:23]}  Re8 {[%clk 0:01:25]} 18. Rd1 {[%clk 0:02:11]}  Bd5 {[%clk 0:01:25]} 19. Qb2 {[%clk 0:02:08]}  Qc7 {[%clk 0:01:23]} 20. Rac1 {[%clk 0:02:06]}  Nc6 {[%clk 0:01:23]} 21. Bc3 {[%clk 0:02:01]}  Qe7 {[%clk 0:01:24]} 22. Rb1 {[%clk 0:01:51]}  Be4 {[%clk 0:01:15]} 23. Rbc1 {[%clk 0:01:51]}  Bd5 {[%clk 0:01:15]} 24. Bh3 {[%clk 0:01:45]}  Red8 {[%clk 0:01:11]} 25. Nd2 {[%clk 0:01:40]}  Ne8 {[%clk 0:00:25]} 26. e4 {[%clk 0:01:40]} 1-0

[Event "November 21 Late 2023"]
[Site "https://www.chess.com"]
[Date "2023.11.21"]
[Round "4"]
[White "Xu, Yi"]
[Black "Shimanov, Aleksandr"]
[Result "0-1"]
[Board "10"]
[TimeControl "180+1"]
[WhiteFideId "8605564"]
[BlackFideId "4198603"]
[WhiteElo "2460"]
[BlackElo "2611"]
[WhiteTeam "CHN"]
[BlackTeam "RUS"]
[WhiteClock "0:00:00"]
[BlackClock "0:01:52"]

1. e4 {[%clk 0:02:59]}  e5 {[%clk 0:02:59]} 2. Nf3 {[%clk 0:03:00]}  Nc6 {[%clk 0:02:59]} 3. Bc4 {[%clk 0:03:00]}  Nf6 {[%clk 0:02:54]} 4. d3 {[%clk 0:02:59]}  Be7 {[%clk 0:02:49]} 5. O-O {[%clk 0:02:59]}  O-O {[%clk 0:02:49]} 6. Nc3 {[%clk 0:02:58]}  d6 {[%clk 0:02:48]} 7. a3 {[%clk 0:02:58]}  Be6 {[%clk 0:02:46]} 8. Re1 {[%clk 0:02:46]}  Qd7 {[%clk 0:02:43]} 9. Nd5 {[%clk 0:02:41]}  Bd8 {[%clk 0:02:38]} 10. Nxf6+ {[%clk 0:02:21]}  Bxf6 {[%clk 0:02:39]} 11. Bxe6 {[%clk 0:02:15]}  fxe6 {[%clk 0:02:36]} 12. Be3 {[%clk 0:02:11]}  a5 {[%clk 0:02:35]} 13. d4 {[%clk 0:01:56]}  exd4 {[%clk 0:02:31]} 14. Nxd4 {[%clk 0:01:57]}  Bxd4 {[%clk 0:02:30]} 15. Bxd4 {[%clk 0:01:58]}  e5 {[%clk 0:02:30]} 16. Be3 {[%clk 0:01:56]}  Qe6 {[%clk 0:02:29]} 17. a4 {[%clk 0:01:42]}  Rf7 {[%clk 0:02:27]} 18. f3 {[%clk 0:01:28]}  h6 {[%clk 0:02:26]} 19. c3 {[%clk 0:01:26]}  Kh7 {[%clk 0:02:23]} 20. Qd5 {[%clk 0:01:24]}  Qxd5 {[%clk 0:02:22]} 21. exd5 {[%clk 0:01:24]}  Ne7 {[%clk 0:02:22]} 22. Rad1 {[%clk 0:01:24]}  g5 {[%clk 0:02:22]} 23. c4 {[%clk 0:01:19]}  b6 {[%clk 0:02:21]} 24. b3 {[%clk 0:01:19]}  Rg8 {[%clk 0:02:18]} 25. h3 {[%clk 0:01:18]}  Nf5 {[%clk 0:02:18]} 26. Bf2 {[%clk 0:01:17]}  h5 {[%clk 0:02:19]} 27. Re4 {[%clk 0:01:17]}  Nh6 {[%clk 0:02:17]} 28. Be3 {[%clk 0:01:14]}  Nf5 {[%clk 0:02:17]} 29. Bf2 {[%clk 0:01:14]}  Ne7 {[%clk 0:02:14]} 30. Rd3 {[%clk 0:01:10]}  Ng6 {[%clk 0:02:14]} 31. Bg3 {[%clk 0:00:59]}  Rgf8 {[%clk 0:02:07]} 32. Kf2 {[%clk 0:00:58]}  Ne7 {[%clk 0:01:56]} 33. Ke2 {[%clk 0:00:50]}  Ng8 {[%clk 0:01:54]} 34. Kd1 {[%clk 0:00:00]}  Nf6 {[%clk 0:01:52]} 0-1

[Event "November 21 Late 2023"]
[Site "https://www.chess.com"]
[Date "2023.11.21"]
[Round "4"]
[White "Lizak, Peter"]
[Black "Carlsen, Magnus"]
[Result "0-1"]
[Board "17"]
[TimeControl "180+1"]
[WhiteFideId "731595"]
[BlackFideId "1503014"]
[WhiteElo "2420"]
[BlackElo "2887"]
[WhiteTeam "HUN"]
[BlackTeam "NOR"]
[WhiteClock "0:02:10"]
[BlackClock "0:02:35"]

1. d4 {[%clk 0:02:59]}  h6 {[%clk 0:02:59]} 2. Nc3 {[%clk 0:02:58]}  a6 {[%clk 0:02:59]} 3. e4 {[%clk 0:02:58]}  e6 {[%clk 0:02:58]} 4. h4 {[%clk 0:02:58]}  b5 {[%clk 0:02:57]} 5. a3 {[%clk 0:02:57]}  Bb7 {[%clk 0:02:57]} 6. h5 {[%clk 0:02:57]}  Nf6 {[%clk 0:02:56]} 7. f3 {[%clk 0:02:52]}  c5 {[%clk 0:02:56]} 8. Nge2 {[%clk 0:02:44]}  cxd4 {[%clk 0:02:52]} 9. Nxd4 {[%clk 0:02:43]}  Qc7 {[%clk 0:02:52]} 10. Be3 {[%clk 0:02:42]}  b4 {[%clk 0:02:47]} 11. axb4 {[%clk 0:02:41]}  Bxb4 {[%clk 0:02:48]} 12. Qd2 {[%clk 0:02:38]}  d5 {[%clk 0:02:47]} 13. e5 {[%clk 0:02:35]}  Qxe5 {[%clk 0:02:45]} 14. O-O-O {[%clk 0:02:32]}  Qc7 {[%clk 0:02:45]} 15. g4 {[%clk 0:02:24]}  Nbd7 {[%clk 0:02:45]} 16. g5 {[%clk 0:02:24]}  hxg5 {[%clk 0:02:43]} 17. Bxg5 {[%clk 0:02:23]}  Bxc3 {[%clk 0:02:42]} 18. bxc3 {[%clk 0:02:19]}  Rxh5 {[%clk 0:02:35]} 19. Rxh5 {[%clk 0:02:13]}  Nxh5 {[%clk 0:02:36]} 20. Bf4 {[%clk 0:02:10]}  Qxf4 {[%clk 0:02:35]} 0-1

[Event "November 21 Late 2023"]
[Site "https://www.chess.com"]
[Date "2023.11.21"]
[Round "4"]
[White "Deac, Bogdan-Daniel"]
[Black "Bjelobrk, Igor"]
[Result "1-0"]
[Board "20"]
[TimeControl "180+1"]
[WhiteFideId "1226380"]
[BlackFideId "4300726"]
[WhiteElo "2641"]
[BlackElo "2319"]
[WhiteTeam "ROU"]
[BlackTeam "AUS"]
[WhiteClock "0:00:12"]
[BlackClock "0:00:28"]

1. b3 {[%clk 0:03:00]}  c5 {[%clk 0:02:57]} 2. Bb2 {[%clk 0:03:01]}  d6 {[%clk 0:02:55]} 3. e3 {[%clk 0:03:00]}  Nc6 {[%clk 0:02:53]} 4. d4 {[%clk 0:02:58]}  cxd4 {[%clk 0:02:46]} 5. exd4 {[%clk 0:02:59]}  d5 {[%clk 0:02:47]} 6. Bd3 {[%clk 0:02:54]}  Nf6 {[%clk 0:02:46]} 7. a3 {[%clk 0:02:49]}  Bg4 {[%clk 0:02:45]} 8. Nf3 {[%clk 0:02:49]}  e6 {[%clk 0:02:43]} 9. Nbd2 {[%clk 0:02:46]}  Be7 {[%clk 0:02:41]} 10. O-O {[%clk 0:02:42]}  O-O {[%clk 0:02:41]} 11. Qe1 {[%clk 0:02:42]}  Rc8 {[%clk 0:02:37]} 12. Qe3 {[%clk 0:02:38]}  Bh5 {[%clk 0:02:35]} 13. c4 {[%clk 0:02:36]}  a5 {[%clk 0:02:34]} 14. Rac1 {[%clk 0:02:34]}  b6 {[%clk 0:02:30]} 15. Rfe1 {[%clk 0:02:28]}  Bg6 {[%clk 0:02:21]} 16. Bf1 {[%clk 0:02:22]}  Ne4 {[%clk 0:02:18]} 17. cxd5 {[%clk 0:02:07]}  exd5 {[%clk 0:02:17]} 18. Bb5 {[%clk 0:01:54]}  Na7 {[%clk 0:02:16]} 19. Bd3 {[%clk 0:01:45]}  Nxd2 {[%clk 0:02:07]} 20. Qxd2 {[%clk 0:01:41]}  Bxd3 {[%clk 0:02:06]} 21. Qxd3 {[%clk 0:01:35]}  Rxc1 {[%clk 0:02:05]} 22. Bxc1 {[%clk 0:01:35]}  Nc8 {[%clk 0:02:02]} 23. Qb5 {[%clk 0:01:27]}  Bd6 {[%clk 0:01:39]} 24. Ne5 {[%clk 0:01:09]}  Ne7 {[%clk 0:01:27]} 25. Nd7 {[%clk 0:01:06]}  Re8 {[%clk 0:01:16]} 26. Nxb6 {[%clk 0:00:39]}  Qb8 {[%clk 0:01:11]} 27. a4 {[%clk 0:00:30]}  Bxh2+ {[%clk 0:01:00]} 28. Kh1 {[%clk 0:00:29]}  Bc7 {[%clk 0:01:00]} 29. Nxd5 {[%clk 0:00:27]}  Qxb5 {[%clk 0:00:48]} 30. axb5 {[%clk 0:00:28]}  Bd6 {[%clk 0:00:49]} 31. Nxe7+ {[%clk 0:00:13]}  Rxe7 {[%clk 0:00:46]} 32. Rxe7 {[%clk 0:00:12]}  Bxe7 {[%clk 0:00:47]} 33. b6 {[%clk 0:00:12]}  Bd6 {[%clk 0:00:35]} 34. g3 {[%clk 0:00:12]}  Kf8 {[%clk 0:00:35]} 35. Bf4 {[%clk 0:00:12]}  Ke7 {[%clk 0:00:28]} 36. b7 {[%clk 0:00:12]} 1-0

[Event "November 21 Late 2023"]
[Site "https://www.chess.com"]
[Date "2023.11.21"]
[Round "4"]
[White "Annaberdiyev, Meylis"]
[Black "Khismatullin, Denis"]
[Result "0-1"]
[Board "21"]
[TimeControl "180+1"]
[WhiteFideId "14000563"]
[BlackFideId "4142578"]
[WhiteElo "2405"]
[BlackElo "2552"]
[WhiteTeam "TKM"]
[BlackTeam "RUS"]
[WhiteClock "0:00:00"]
[BlackClock "0:00:10"]

1. e4 {[%clk 0:03:00]}  c5 {[%clk 0:02:58]} 2. Nc3 {[%clk 0:02:59]}  e6 {[%clk 0:02:57]} 3. f4 {[%clk 0:02:57]}  Nc6 {[%clk 0:02:55]} 4. Nf3 {[%clk 0:02:55]}  d5 {[%clk 0:02:54]} 5. Bb5 {[%clk 0:02:55]}  Ne7 {[%clk 0:02:54]} 6. O-O {[%clk 0:02:53]}  a6 {[%clk 0:02:48]} 7. Bxc6+ {[%clk 0:02:51]}  Nxc6 {[%clk 0:02:49]} 8. d3 {[%clk 0:02:45]}  Be7 {[%clk 0:02:48]} 9. Kh1 {[%clk 0:02:31]}  O-O {[%clk 0:02:47]} 10. Ne5 {[%clk 0:02:31]}  Nd4 {[%clk 0:02:36]} 11. Ne2 {[%clk 0:02:14]}  f6 {[%clk 0:02:23]} 12. Ng4 {[%clk 0:02:03]}  dxe4 {[%clk 0:02:11]} 13. dxe4 {[%clk 0:02:03]}  e5 {[%clk 0:02:10]} 14. f5 {[%clk 0:02:02]}  b5 {[%clk 0:01:54]} 15. Ne3 {[%clk 0:02:02]}  Bb7 {[%clk 0:01:53]} 16. Nc3 {[%clk 0:02:02]}  Qe8 {[%clk 0:01:44]} 17. Ncd5 {[%clk 0:02:02]}  Rd8 {[%clk 0:01:43]} 18. c3 {[%clk 0:01:53]}  Nc6 {[%clk 0:01:42]} 19. Qg4 {[%clk 0:01:53]}  Rd7 {[%clk 0:01:34]} 20. a4 {[%clk 0:01:49]}  c4 {[%clk 0:01:31]} 21. axb5 {[%clk 0:01:48]}  axb5 {[%clk 0:01:32]} 22. Rf3 {[%clk 0:01:37]}  Bc5 {[%clk 0:01:32]} 23. Rg3 {[%clk 0:01:37]}  Qf7 {[%clk 0:01:22]} 24. Qh4 {[%clk 0:01:24]}  Kh8 {[%clk 0:01:16]} 25. Rh3 {[%clk 0:00:57]}  Qg8 {[%clk 0:01:15]} 26. Bd2 {[%clk 0:00:31]}  Ne7 {[%clk 0:01:08]} 27. Nxe7 {[%clk 0:00:31]}  Bxe7 {[%clk 0:01:05]} 28. Be1 {[%clk 0:00:31]}  Bc5 {[%clk 0:01:01]} 29. Bf2 {[%clk 0:00:31]}  Rfd8 {[%clk 0:00:56]} 30. Nd5 {[%clk 0:00:06]}  Bxf2 {[%clk 0:00:53]} 31. Qxf2 {[%clk 0:00:07]}  Bxd5 {[%clk 0:00:52]} 32. exd5 {[%clk 0:00:07]}  Qxd5 {[%clk 0:00:47]} 33. Re3 {[%clk 0:00:08]}  h6 {[%clk 0:00:42]} 34. h3 {[%clk 0:00:08]}  Qc5 {[%clk 0:00:39]} 35. Qg3 {[%clk 0:00:06]}  Rd2 {[%clk 0:00:36]} 36. Kh2 {[%clk 0:00:05]}  R2d3 {[%clk 0:00:33]} 37. Rae1 {[%clk 0:00:04]}  b4 {[%clk 0:00:30]} 38. Qf2 {[%clk 0:00:01]}  Rd2 {[%clk 0:00:27]} 39. R1e2 {[%clk 0:00:01]}  bxc3 {[%clk 0:00:23]} 40. bxc3 {[%clk 0:00:01]}  Rxe2 {[%clk 0:00:23]} 41. Qxe2 {[%clk 0:00:02]}  Qd5 {[%clk 0:00:22]} 42. Re4 {[%clk 0:00:02]}  Qd3 {[%clk 0:00:21]} 43. Qe3 {[%clk 0:00:02]}  Qxe3 {[%clk 0:00:20]} 44. Rxe3 {[%clk 0:00:03]}  Rd3 {[%clk 0:00:20]} 45. Rf3 {[%clk 0:00:03]}  Kg8 {[%clk 0:00:16]} 46. Kg3 {[%clk 0:00:03]}  Kf7 {[%clk 0:00:16]} 47. Kg4 {[%clk 0:00:01]}  Ke7 {[%clk 0:00:12]} 48. Kh5 {[%clk 0:00:01]}  e4 {[%clk 0:00:12]} 49. Rf4 {[%clk 0:00:02]}  Re3 {[%clk 0:00:11]} 50. g4 {[%clk 0:00:01]}  Kd6 {[%clk 0:00:10]} 51. Kg6 {[%clk 0:00:01]}  Ke5 {[%clk 0:00:10]} 52. Rf1 {[%clk 0:00:02]}  Rxh3 {[%clk 0:00:10]} 53. Kxg7 {[%clk 0:00:02]}  Rg3 {[%clk 0:00:10]} 54. Kxh6 {[%clk 0:00:02]}  Rxg4 {[%clk 0:00:11]} 55. Rd1 {[%clk 0:00:03]}  e3 {[%clk 0:00:11]} 56. Rd7 {[%clk 0:00:03]}  Ke4 {[%clk 0:00:11]} 57. Re7+ {[%clk 0:00:03]}  Kf3 {[%clk 0:00:11]} 58. Re6 {[%clk 0:00:02]}  Re4 {[%clk 0:00:10]} 59. Kg6 {[%clk 0:00:03]}  e2 {[%clk 0:00:10]} 60. Rxf6 {[%clk 0:00:00]}  e1=Q {[%clk 0:00:10]} 0-1

[Event "November 21 Late 2023"]
[Site "https://www.chess.com"]
[Date "2023.11.21"]
[Round "4"]
[White "Remizov, Yaroslav"]
[Black "MKlose11"]
[Result "1-0"]
[Board "23"]
[TimeControl "180+1"]
[WhiteFideId "34134015"]
[WhiteElo "2420"]
[BlackElo "2652"]
[WhiteTeam "RUS"]
[WhiteClock "0:00:03"]
[BlackClock "0:00:29"]

1. e4 {[%clk 0:03:00]}  e6 {[%clk 0:03:00]} 2. Nc3 {[%clk 0:02:58]}  d5 {[%clk 0:02:59]} 3. g3 {[%clk 0:02:59]}  Nf6 {[%clk 0:02:57]} 4. Bg2 {[%clk 0:02:59]}  Be7 {[%clk 0:02:56]} 5. d4 {[%clk 0:02:59]}  O-O {[%clk 0:02:51]} 6. Nge2 {[%clk 0:02:59]}  c5 {[%clk 0:02:48]} 7. exd5 {[%clk 0:02:54]}  exd5 {[%clk 0:02:47]} 8. dxc5 {[%clk 0:02:54]}  Be6 {[%clk 0:02:42]} 9. Nf4 {[%clk 0:02:40]}  Bxc5 {[%clk 0:02:40]} 10. Nxe6 {[%clk 0:02:39]}  fxe6 {[%clk 0:02:39]} 11. O-O {[%clk 0:02:40]}  Nc6 {[%clk 0:02:39]} 12. Bf4 {[%clk 0:02:23]}  Qd7 {[%clk 0:02:35]} 13. Qd2 {[%clk 0:02:18]}  Rad8 {[%clk 0:02:34]} 14. h3 {[%clk 0:02:09]}  h6 {[%clk 0:02:34]} 15. Rad1 {[%clk 0:01:46]}  a6 {[%clk 0:02:34]} 16. g4 {[%clk 0:01:27]}  Kh8 {[%clk 0:02:21]} 17. Bg3 {[%clk 0:01:26]}  Bb4 {[%clk 0:02:16]} 18. a3 {[%clk 0:01:25]}  Ba5 {[%clk 0:02:15]} 19. b4 {[%clk 0:01:23]}  Bb6 {[%clk 0:02:15]} 20. Rfe1 {[%clk 0:01:21]}  Rfe8 {[%clk 0:02:10]} 21. Bh4 {[%clk 0:01:19]}  Rf8 {[%clk 0:02:08]} 22. Na4 {[%clk 0:01:08]}  Ba7 {[%clk 0:02:06]} 23. Nc5 {[%clk 0:01:02]}  Bxc5 {[%clk 0:02:05]} 24. bxc5 {[%clk 0:01:03]}  Rde8 {[%clk 0:01:58]} 25. Bg3 {[%clk 0:00:55]}  Rc8 {[%clk 0:01:26]} 26. Bd6 {[%clk 0:00:54]}  Rfe8 {[%clk 0:01:26]} 27. Rb1 {[%clk 0:00:51]}  Nd8 {[%clk 0:01:25]} 28. f4 {[%clk 0:00:37]}  Nf7 {[%clk 0:01:25]} 29. g5 {[%clk 0:00:32]}  hxg5 {[%clk 0:01:20]} 30. fxg5 {[%clk 0:00:33]}  Nxd6 {[%clk 0:01:14]} 31. cxd6 {[%clk 0:00:25]}  Nh7 {[%clk 0:01:06]} 32. Qf4 {[%clk 0:00:08]}  Kg8 {[%clk 0:01:06]} 33. g6 {[%clk 0:00:05]}  Nf8 {[%clk 0:01:06]} 34. Rf1 {[%clk 0:00:03]}  Nxg6 {[%clk 0:01:02]} 35. Qg3 {[%clk 0:00:03]}  Nh8 {[%clk 0:00:55]} 36. Rb4 {[%clk 0:00:03]}  Rf8 {[%clk 0:00:52]} 37. Rxf8+ {[%clk 0:00:02]}  Rxf8 {[%clk 0:00:52]} 38. Rh4 {[%clk 0:00:03]}  Rf6 {[%clk 0:00:48]} 39. c4 {[%clk 0:00:03]}  Nf7 {[%clk 0:00:41]} 40. cxd5 {[%clk 0:00:03]}  e5 {[%clk 0:00:40]} 41. Rg4 {[%clk 0:00:02]}  Nxd6 {[%clk 0:00:38]} 42. Qxe5 {[%clk 0:00:02]}  Qf7 {[%clk 0:00:36]} 43. Kh2 {[%clk 0:00:02]}  Rf5 {[%clk 0:00:34]} 44. Qxd6 {[%clk 0:00:02]}  Rf6 {[%clk 0:00:32]} 45. Qd8+ {[%clk 0:00:02]}  Kh7 {[%clk 0:00:32]} 46. Be4+ {[%clk 0:00:02]}  g6 {[%clk 0:00:31]} 47. Rh4+ {[%clk 0:00:02]}  Kg7 {[%clk 0:00:29]} 48. Qh8# {[%clk 0:00:03]} 1-0

[Event "November 21 Late 2023"]
[Site "https://www.chess.com"]
[Date "2023.11.21"]
[Round "4"]
[White "Taher, Yoseph Theolifus"]
[Black "Lamard, Guillaume"]
[Result "1-0"]
[Board "24"]
[TimeControl "180+1"]
[WhiteFideId "7105347"]
[BlackFideId "600261"]
[WhiteElo "2352"]
[BlackElo "2409"]
[WhiteTeam "INA"]
[BlackTeam "FRA"]
[WhiteClock "0:00:39"]
[BlackClock "0:00:00"]

1. d4 {[%clk 0:02:45]}  Nf6 {[%clk 0:02:59]} 2. Nc3 {[%clk 0:02:45]}  d5 {[%clk 0:02:55]} 3. Bf4 {[%clk 0:02:46]}  c5 {[%clk 0:02:53]} 4. e4 {[%clk 0:02:45]}  e6 {[%clk 0:02:41]} 5. exd5 {[%clk 0:02:43]}  Nxd5 {[%clk 0:02:35]} 6. Bb5+ {[%clk 0:02:40]}  Nc6 {[%clk 0:02:34]} 7. Bxc6+ {[%clk 0:02:28]}  bxc6 {[%clk 0:02:34]} 8. Be5 {[%clk 0:02:23]}  Qg5 {[%clk 0:02:18]} 9. Nf3 {[%clk 0:02:17]}  Qxg2 {[%clk 0:02:14]} 10. Rg1 {[%clk 0:02:17]}  Qh3 {[%clk 0:02:15]} 11. Nxd5 {[%clk 0:02:13]}  cxd5 {[%clk 0:02:04]} 12. Qe2 {[%clk 0:02:05]}  f6 {[%clk 0:01:57]} 13. Bf4 {[%clk 0:01:54]}  c4 {[%clk 0:01:53]} 14. O-O-O {[%clk 0:01:49]}  Kf7 {[%clk 0:01:51]} 15. Qe3 {[%clk 0:01:48]}  Qf5 {[%clk 0:01:41]} 16. c3 {[%clk 0:01:43]}  Bd7 {[%clk 0:01:39]} 17. Rg3 {[%clk 0:01:42]}  Ba4 {[%clk 0:01:33]} 18. Rd2 {[%clk 0:01:41]}  Be7 {[%clk 0:01:27]} 19. h4 {[%clk 0:01:35]}  h5 {[%clk 0:01:23]} 20. Ne1 {[%clk 0:01:29]}  Qe4 {[%clk 0:01:15]} 21. Qxe4 {[%clk 0:01:23]}  dxe4 {[%clk 0:01:16]} 22. Ng2 {[%clk 0:01:22]}  Bc6 {[%clk 0:01:16]} 23. Ne3 {[%clk 0:01:22]}  Bd5 {[%clk 0:01:16]} 24. Rd1 {[%clk 0:01:22]}  g6 {[%clk 0:01:09]} 25. Rdg1 {[%clk 0:01:22]}  Rhg8 {[%clk 0:01:10]} 26. Kc2 {[%clk 0:01:22]}  a5 {[%clk 0:01:10]} 27. b3 {[%clk 0:01:22]}  cxb3+ {[%clk 0:01:04]} 28. axb3 {[%clk 0:01:23]}  a4 {[%clk 0:01:04]} 29. b4 {[%clk 0:01:23]}  a3 {[%clk 0:00:47]} 30. c4 {[%clk 0:01:20]}  a2 {[%clk 0:00:45]} 31. Ra1 {[%clk 0:01:18]}  Rgc8 {[%clk 0:00:36]} 32. Kb3 {[%clk 0:01:17]}  Bc6 {[%clk 0:00:20]} 33. b5 {[%clk 0:01:10]}  Bxb5 {[%clk 0:00:21]} 34. cxb5 {[%clk 0:01:06]}  Ra3+ {[%clk 0:00:21]} 35. Kb2 {[%clk 0:01:06]}  Rcc3 {[%clk 0:00:21]} 36. Nc2 {[%clk 0:00:54]}  Rcb3+ {[%clk 0:00:05]} 37. Kc1 {[%clk 0:00:54]}  Rxg3 {[%clk 0:00:06]} 38. fxg3 {[%clk 0:00:48]}  Ra5 {[%clk 0:00:06]} 39. b6 {[%clk 0:00:46]}  Rb5 {[%clk 0:00:05]} 40. Bc7 {[%clk 0:00:46]}  g5 {[%clk 0:00:02]} 41. Rxa2 {[%clk 0:00:46]}  gxh4 {[%clk 0:00:02]} 42. gxh4 {[%clk 0:00:47]}  f5 {[%clk 0:00:03]} 43. Ra7 {[%clk 0:00:47]}  Bxh4 {[%clk 0:00:02]} 44. b7 {[%clk 0:00:43]}  Bg5+ {[%clk 0:00:03]} 45. Kd1 {[%clk 0:00:44]}  Kg6 {[%clk 0:00:02]} 46. b8=Q {[%clk 0:00:43]}  Rxb8 {[%clk 0:00:03]} 47. Bxb8 {[%clk 0:00:44]}  h4 {[%clk 0:00:04]} 48. Ke2 {[%clk 0:00:43]}  f4 {[%clk 0:00:05]} 49. Ne1 {[%clk 0:00:40]}  h3 {[%clk 0:00:05]} 50. Ra3 {[%clk 0:00:39]}  f3+ {[%clk 0:00:04]} 51. Nxf3 {[%clk 0:00:39]}  exf3+ {[%clk 0:00:00]} 52. Rxf3 {[%clk 0:00:39]} 1-0